Cogmind - Beta 15 @@@ ROGUE MODE // 2025.07.08 @ 17:01:30 Player: f3-rnm Result: Destroyed by H-71 Marshal with Heavy Mass Driver Performance ------------- Evolutions (7) 3500 Regions Visited (17) 3400 Robots Destroyed (177) 885 Value Destroyed (10754) 10754 Prototype IDs (57) 1140 Alien Tech Used (6) 1200 Bonus (12201) 12201 TOTAL SCORE: 33080 Bonus ------- High Alert Combat Kills 2525 Follower Combat Kills 2830 Entered Garrisons 200 Registered with UFD 300 Met Optimus in HQ 500 Met Zhirov 300 Met Warlord at Base 500 MAIN.C Attacked Warlord 500 Built Enhanced Grunts 300 A7 Reached Mainframe 300 Met R17 at Cetus 500 Used Core Reset Matrix 3000 Met R17 at Research 2000 Friendly Fire -1554 Cogmind --------- Core Integrity 0/1300 Matter 248/300 Energy 99/100 System Corruption 18% Temperature Cool (0) Movement Core (50) Location -3/Section 7 Parts ------- > --- POWER (3) -------- (None) > --- PROPULSION (2) --- (None) > --- UTILITY (12) ----- Experimental Cloaking Device > --- WEAPON (4) ------- (None) > --- INVENTORY (5) ---- Huge Storage Unit High-powered Tractor Beam Core Cannon Improved Plasma Cutter Peak State ------------ > --- POWER ------------ Quantum Reactor Quantum Reactor Light Quantum Reactor > --- PROPULSION ------- Overtuned Huge Scrapsphere > --- UTILITY ---------- Scrap Suit Advanced Heat Sink Experimental Coolant Injector Experimental Coolant Injector Huge Storage Unit Spectral Analyzer Core Analyzer Advanced Weapon Cycler Phase Armor Ghost Barrier > --- WEAPON ----------- Gamma Rifle Gamma Rifle Sigix Broadsword > --- INVENTORY -------- Armored Wheel Centrium Wheel Scrap Suit Experimental Energy Well High-capacity Matter Pod Matter Compressor Precision Matter Filter Improved Transmission Jammer Experimental Cloaking Device Centrium Medium Armor Plating Centrium Medium Armor Plating Centrium Heavy Armor Plating High-powered Tractor Beam Gamma Rifle Overtuned Quantum Rifle Heavy Quantum Rifle Overtuned Railgun Overtuned Railgun Multirail Micro-nuke Launcher Improved Remote Datajack Improved Plasma Cutter [Rating: 190] Favorites ----------- Power Quantum Reactor Engine Ion Engine Power Core Micro Fission Core Reactor Quantum Reactor Propulsion Overtuned Huge Scrapsphere Treads Light Treads Wheel Overtuned Huge Scrapsphere Utility Huge Storage Unit Device Scrap Suit Storage Huge Storage Unit Processor Spectral Analyzer Hackware Ghost Barrier Protection Improved Medium Armor Plating Artifact Phase Armor Weapon Gamma Rifle Energy Gun Gamma Rifle Energy Cannon Phase Cannon Ballistic Gun Hypervelocity Coil Gun Ballistic Cannon Battle Cannon Launcher Proton Missile Launcher Special Weapon Improved Remote Datajack Slashing Weapon Sigix Broadsword Build | -11 -10 -10 -7 -5 -5 -5 -5 -5 -5 -4 -4 -4 -4 -3 -3 -3 -3 ------- Run | Yrd Mat Sub Scr Fac Ext Cet Arc Hub Gar Fac Upp Upp War Pro Res Qua Sec Slots Evolved 14 | . . . . 10 . . . . . 2 . . . . 2 . . Power 2 | . . . . 1 . . . . . . . . . . 1 . . Propulsion . | . . . . . . . . . . . . . . . . . . Utility 10 | . . . . 8 . . . . . 1 . . . . 1 . . Weapon 2 | . . . . 1 . . . . . 1 . . . . . . . Parts Attached 186 | 6 2 11 4 17 22 6 . 3 22 7 3 1 17 1 15 41 8 Power 23 | 1 . 1 . 1 3 1 . 1 4 . . . 2 . 1 8 . Engine 6 | 1 . 1 . . 1 . . 1 2 . . . . . . . . Core 4 | . . . . 1 1 . . . . . . . . . 1 1 . Reactor 13 | . . . . . 1 1 . . 2 . . . 2 . . 7 . Propulsion 13 | 2 . 3 1 . 2 . . . 4 . 1 . . . . . . Treads 5 | 2 . 1 . . . . . . 2 . . . . . . . . Leg . | . . . . . . . . . . . . . . . . . . Wheel 8 | . . 2 1 . 2 . . . 2 . 1 . . . . . . Hover . | . . . . . . . . . . . . . . . . . . Flight . | . . . . . . . . . . . . . . . . . . Utility 88 | 1 2 2 1 10 6 2 . 2 8 5 2 1 8 1 8 22 7 Device 50 | . 1 . . 7 4 1 . 2 5 1 1 1 3 . 5 13 6 Storage 7 | 1 1 1 1 . . . . . . . . . 1 . 1 1 . Processor 11 | . . . . 3 . . . . . 2 . . 3 1 1 1 . Hackware 6 | . . . . . . . . . . 2 . . 1 . 1 2 . Protection 13 | . . 1 . . 2 1 . . 3 . 1 . . . . 4 1 Artifact 1 | . . . . . . . . . . . . . . . . 1 . Weapon 62 | 2 . 5 2 6 11 3 . . 6 2 . . 7 . 6 11 1 Energy Gun 23 | . . 3 . 3 3 . . . 4 1 . . 2 . 1 6 . Energy Cannon 6 | . . 1 . 2 . . . . . . . . 1 . . 1 1 Ballistic Gun 22 | 2 . . . 1 4 3 . . 1 1 . . 4 . 5 1 . Ballistic Cannon 3 | . . 1 1 . . . . . . . . . . . . 1 . Launcher 2 | . . . . . . . . . 1 . . . . . . 1 . Special Weapon 5 | . . . 1 . 4 . . . . . . . . . . . . Impact Weapon . | . . . . . . . . . . . . . . . . . . Slashing Weapon 1 | . . . . . . . . . . . . . . . . 1 . Piercing Weapon . | . . . . . . . . . . . . . . . . . . Special Melee Weapon . | . . . . . . . . . . . . . . . . . . Unidentified Prototypes 32 | . . . . 2 . 3 . 1 1 1 . . 7 . 1 14 2 Corrupted Parts 21 | . . . . . . 3 . . 2 2 2 . 2 . . 10 . System Corruption 119 | . . . . . . 17 . . 11 9 4 . 12 . . 66 . Parts Lost 56 | . . 6 . 1 2 1 . 6 11 . . 2 . . 1 11 15 Power 10 | . . 1 . . . . . 1 2 . . . . . . 2 4 Propulsion 3 | . . 3 . . . . . . . . . . . . . . . Utility 25 | . . . . . 2 . . 3 6 . . 2 . . 1 5 6 Weapon 18 | . . 2 . 1 . 1 . 2 3 . . . . . . 4 5 Highest Loss Streak 10 | . . 4 . 1 1 1 . 4 5 . . 1 . . 1 4 10 To Critical Strikes 1 | . . . . . . 1 . . . . . . . . . . . Average Backups 20 | . 6 13 19 19 21 21 22 22 18 24 24 23 23 23 22 22 19 Power 1 | . 1 . . . 1 4 5 5 2 2 2 2 2 2 . . . Propulsion 1 | . 1 3 1 1 . . . . . 2 3 3 3 3 3 1 . Utility 8 | . 2 3 7 3 5 6 6 6 5 9 9 8 12 12 12 11 9 Weapon 6 | . 2 5 8 11 11 8 9 8 7 7 7 8 4 4 3 6 6 Tool/Special . | . . . . . . . . . . . . . . . . . . Unused Backups 64 | . . . 20 . 6 9 1 4 4 1 2 . 6 . 3 6 2 Power 7 | . . . 2 . 1 1 . 1 . . 2 . . . . . . Propulsion 10 | . . . 2 . . 3 . 1 1 . . . . . . 3 . Utility 29 | . . . 11 . 3 4 1 2 . 1 . . 2 . 2 2 1 Weapon 17 | . . . 5 . 2 1 . . 3 . . . 4 . 1 1 . Tool/Special 1 | . . . . . . . . . . . . . . . . . 1 Average Slot Usage (%) 84 | . 97 97 82 75 88 86 88 87 83 99 89 87 85 84 79 78 77 Engine 5 | . 14 14 14 5 3 . . . 5 5 5 5 2 . . . . Reactor 4 | . . . . . 1 10 11 11 3 5 5 5 5 5 4 10 8 Treads 2 | . 28 17 . . . . . . 3 . . . . . . . . Wheel 7 | . . 10 23 5 5 5 5 5 2 10 5 5 5 5 4 4 3 Device 19 | . 11 12 . 25 29 29 29 28 22 25 25 28 27 26 21 22 31 Storage 7 | . 14 14 14 5 5 5 5 5 5 5 5 5 5 5 4 4 3 Processor 6 | . . . . 12 13 11 11 11 11 13 11 2 6 10 9 8 . Hackware 2 | . . . . . . . . . . 9 5 5 5 5 5 5 3 Protection 3 | . . 1 1 . 3 4 5 5 6 3 3 8 6 5 4 2 4 Energy Gun 7 | . . 6 12 3 7 3 . 1 11 15 15 15 6 . . 8 . Energy Cannon 1 | . . 8 . 2 . . . . 1 . 4 5 . . . . 1 Ballistic Gun 6 | . 28 7 . 2 7 11 17 15 2 4 . . 13 20 17 2 6 Ballistic Cannon 2 | . . 4 14 6 . . . . . . . . . . . . . Peak Build Rating 190 | 6 8 12 24 90 97 108 108 109 102 108 113 116 134 135 148 190 184 Average Rating 96 | 5 6 9 17 69 92 100 108 107 88 104 111 112 120 131 143 170 164 On Entrance 84 | . 6 8 12 24 89 96 108 108 86 97 102 113 112 134 126 146 159 Naked Turns 3 | . . . . . . . . . . . . . . . . . 3 Heaviest Build 215 | 11 87 87 215 215 140 145 145 145 147 153 160 171 171 167 182 211 203 Greatest Support 46 | 40 40 40 28 28 28 20 20 20 46 24 24 20 20 20 20 20 20 Greatest Overweight (x) 15 | 2 2 4 10 7 15 7 7 7 12 6 7 8 8 8 9 10 10 Average Overweight (x) 6 | . . 2 7 3 5 6 7 6 5 5 6 7 7 8 8 8 7 Largest Inventory Capacity 35 | 8 25 25 35 35 25 25 25 25 25 25 25 25 25 25 25 25 25 Average Capacity 25 | 7 9 21 33 25 25 25 25 25 25 25 25 25 25 25 25 25 24 Most Carried 35 | 1 13 20 35 25 25 25 22 24 25 25 25 25 25 25 25 25 25 Average Carried 21 | . 6 13 21 20 23 22 22 22 18 24 24 24 24 24 24 24 21 Final Capacity 35 | 8 25 20 35 25 25 25 25 25 25 25 25 25 25 25 25 25 5 Final Carried 25 | 1 13 20 22 25 25 22 22 22 24 25 24 25 25 25 25 25 5 Class Distribution -------------------- 18% | Scavenger-Tank 16% | Scavenger-Scrapper 16% | Scavenger-Mutant 14% | Hauler-Mutant 14% | Mutant 13% | Scavenger-Gunner 3% | Tank Dominant Class ---------------- Mutant | -10/Materials Mutant | -10/Subcaves Hauler-Mutant | -7/Scraptown Tank | -5/Factory Scavenger-Scrapper | -5/Extension Scavenger-Scrapper | -5/Cetus Scavenger-Scrapper | -5/Archives Scavenger-Scrapper | -5/Hub_04(d) Scavenger-Tank | -5/Garrison Scavenger-Tank | -4/Factory Scavenger-Gunner | -4/Upper Caves Scavenger-Tank | -4/Upper Caves Scavenger-Tank | -4/Warlord Gunner | -3/Proximity Caves Scavenger-Scrapper | -3/Research Scavenger-Mutant | -3/Quarantine Scavenger-Mutant | -3/Section 7 Resources | -11 -10 -10 -7 -5 -5 -5 -5 -5 -5 -4 -4 -4 -4 -3 -3 -3 -3 ----------- Run | Yrd Mat Sub Scr Fac Ext Cet Arc Hub Gar Fac Upp Upp War Pro Res Qua Sec Matter Collected 11336 | 260 199 255 20 58 1432 328 . 557 528 111 406 284 250 756 1887 2598 1407 Remotely 290 | . . . . . . . . . . . . . . . . . 290 Salvage Created 10179 | . 372 187 . 99 1544 203 . 761 1179 337 210 166 . 510 1321 1776 1514 Parts 499 | . 19 8 . 9 81 8 . 18 45 13 12 10 . 31 71 122 52 Haulers Intercepted 1 | . 1 . . . . . . . . . . . . . . . . Recyclers Shooed 2 | . 1 . . . . . . 1 . . . . . . . . . Parts Field Recycled . | . . . . . . . . . . . . . . . . . . Retrieved Matter . | . . . . . . . . . . . . . . . . . . Parts Self-Destructed 83 | . . 5 . . . . . . . . 16 27 . 35 . . . Prevented 5 | . . . . . . . . . . . 4 . . 1 . . . Kills | -11 -10 -10 -7 -5 -5 -5 -5 -5 -5 -4 -4 -4 -4 -3 -3 -3 -3 ------- Run | Yrd Mat Sub Scr Fac Ext Cet Arc Hub Gar Fac Upp Upp War Pro Res Qua Sec Combat Hostiles Destroyed 139 | . 7 4 . 2 19 2 . 10 20 2 1 7 . 7 11 19 28 Guns 110 | . 7 3 . . 18 2 . 10 18 2 1 5 . 7 11 8 18 Cannons 8 | . . 1 . 2 . . . . . . . 2 . . . . 3 AOE 7 | . . . . . . . . . . . . . . . . . 7 Classes Destroyed 22 | . 6 2 . 1 5 1 . 1 2 . . . . 1 1 2 . Worker 9 | . 2 . . 1 . . . 1 . 3 . . . . 1 1 . Builder 7 | . 1 . . . 2 . . . . 1 . . . . . 3 . Hauler 1 | . 1 . . . . . . . . . . . . . . . . Recycler 3 | . . . . . . . . 1 . 1 . . . . . 1 . Operator 3 | . . . . . 1 . . . . . . . . . . 1 1 Drone 1 | . . . . . . . . . . . . . . 1 . . . Watcher 7 | . 1 . . . 2 . . 2 . 1 . . . . 1 . . Swarmer 31 | . 3 . . . 1 . . 3 8 . . 7 . . 3 . 6 Grunt 44 | . 4 . . . 9 2 . 5 7 . . . . 3 2 . 12 Brawler 2 | . . . . . . . . . 1 . . . . . . . 1 Sentry 17 | . . . . . 6 . . 2 2 . . . . 1 1 . 5 Demolisher 1 | . . . . . . . . . . . . . . . 1 . . Specialist 1 | . . . . . 1 . . . . . . . . . . . . Hunter 4 | . . . . . . . . . 1 . . . . . 3 . . Programmer 15 | . . . . 2 . . . . . 2 . . . 2 . 7 2 Behemoth 5 | . . . . . 2 . . . 1 . 1 . . . 1 . . Quarantine Guard 10 | . . . . . . . . . . . . . . . . 10 . S7 Guard 1 | . . . . . . . . . . . . . . . . . 1 Alpha 7 2 | . . . . . . . . . . . . . . . . 1 1 Fortress 1 | . . . . . . . . . . . . . . . . 1 . Artisan 2 | . . 2 . . . . . . . . . . . . . . . Subdweller 4 | . . 4 . . . . . . . . . . . . . . . Scrapoid 7 | . . . . . 1 . . . . . 1 . . . 5 . . Botcube 1 | . . . . . . 1 . . . . . . . . . . . Thug 1 | . . . . . . 1 . . . . . . . . . . . Best Kill Streak 9 | . 3 2 . 2 5 2 . 8 4 3 1 4 . 3 5 4 9 Combat Bots Only 9 | . 2 2 . 2 5 2 . 7 4 1 1 4 . 3 5 4 9 Max Kills in Single Turn 3 | . 2 1 . 1 2 2 . 2 2 1 1 2 . 1 1 1 3 Gunslinging 1 | . 1 . . . . . . . 1 . . . . . . . . Exploded 3 | . . . . . . . . . . . . . . . . . 3 Melee . | . . . . . . . . . . . . . . . . . . Uniques/NPCs Destroyed . | . . . . . . . . . . . . . . . . . . Combat | -11 -10 -10 -7 -5 -5 -5 -5 -5 -5 -4 -4 -4 -4 -3 -3 -3 -3 -------- Run | Yrd Mat Sub Scr Fac Ext Cet Arc Hub Gar Fac Upp Upp War Pro Res Qua Sec Hostile Shots Fired 1276 | . 28 43 . 26 108 28 . 83 141 12 4 33 . 37 98 202 433 Missed 353 | . 10 9 . 10 34 11 . 30 42 2 . 10 . 11 35 53 96 Hits 923 | . 18 34 . 16 74 17 . 53 99 10 4 23 . 26 63 149 337 Melee 3 | . . . . . 1 . . . . . . . . . . . 2 Projectile 920 | . 18 34 . 16 73 17 . 53 99 10 4 23 . 26 63 149 335 AOE 5 | . . 3 . . 1 . . . . . . . . . . . 1 Critical Strikes 54 | . . . . 3 3 4 . 3 4 1 . 1 . 1 3 6 25 Part Disruptions 2 | . . . . 1 . . . . . . . . . . . 1 . Damage Taken 18493 | . 191 927 . 280 1241 357 250 1044 2021 223 79 420 . 413 885 4574 5588 Core 2285 | . 32 161 . 64 113 13 . 100 496 . . . . 38 20 145 1103 Absorbed by Shields 3215 | . . . . 48 290 109 . . . . . 17 . 128 . 962 1661 Redirected to Shielding 6 | . . 6 . . . . . . . . . . . . . . . Ignored by Resistances 363 | . . . . . . . . . . . . . . . . . 363 Regen/Repaired (Parts) 1464 | . . . . . 34 10 . 17 33 . 10 30 88 4 53 516 669 Core Remaining (%) 59 | 100 . . 22 . . . . . 21 . . . . 96 . . . Volleys Fired 715 | 1 31 43 1 15 101 23 . 37 74 14 6 12 8 27 63 165 94 Largest 4 | 2 2 2 1 3 3 3 . 3 3 4 4 4 1 4 4 4 4 Hottest 353 | 40 40 110 . 190 217 164 . 164 351 298 298 353 100 205 300 300 300 Shots Fired 1799 | 2 62 64 1 28 239 66 . 111 187 58 20 47 8 106 247 347 206 Gun 1548 | 2 62 30 . 6 210 66 . 111 171 58 17 35 8 106 246 271 149 Cannon 207 | . . 34 . 22 1 . . . 5 . 3 12 . . . 76 54 Launcher 8 | . . . . . . . . . 4 . . . . . 1 . 3 Special 36 | . . . 1 . 28 . . . 7 . . . . . . . . Kinetic 1032 | 2 62 24 . 15 112 49 . 101 50 15 4 . 4 101 232 107 154 Thermal 544 | . . 25 . 10 71 17 . 10 121 43 15 47 4 5 14 113 49 Explosive 3 | . . . . . . . . . . . . . . . . . 3 Electromagnetic 184 | . . 15 . 3 28 . . . 9 . 1 . . . 1 127 . Robot Hit Streak 31 | 2 9 13 14 15 13 8 . 7 13 10 8 6 . 7 19 31 11 Robot Miss Streak 15 | . 4 2 . 3 7 4 . 7 5 4 2 7 . 15 7 5 4 Penetration Max 2 | . . . . . 1 1 . 2 1 . . . . 1 2 1 2 Secondary Targets 20 | . 2 . . . 3 . . 2 5 . . . . 1 3 2 2 Max Gunslinging Chain 1 | . 1 . . . 1 . . 1 1 . . . . 1 1 1 1 Shots Hit Robots 995 | 2 34 40 1 9 144 44 . 60 108 25 11 24 . 45 137 184 127 Core Hits 425 | . 20 10 . 5 51 17 . 32 41 14 6 18 . 20 47 71 73 Critical Kills 32 | . . . . . 3 . . 3 . . . . . 5 9 2 10 Critical Parts Destroyed 37 | . . . . . 3 4 . 3 1 . . . . 8 9 2 7 Critical Strikes 92 | . . 2 . . 14 8 . 7 5 . . . . 13 21 5 17 Burn 15 | . . . . . 6 4 . . 4 . . . . . 1 . . Meltdown 2 | . . . . . . . . . . . . . . . . 1 1 Destroy 70 | . . . . . 6 4 . 7 1 . . . . 13 20 3 16 Blast 1 | . . 1 . . . . . . . . . . . . . . . Corrupt 4 | . . 1 . . 2 . . . . . . . . . . 1 . Melee Attacks 16 | . . . . . . . . . . . . . . . . 5 11 Impact . | . . . . . . . . . . . . . . . . . . Slashing 16 | . . . . . . . . . . . . . . . . 5 11 Piercing . | . . . . . . . . . . . . . . . . . . Sneak Attacks . | . . . . . . . . . . . . . . . . . . Combat Hostiles . | . . . . . . . . . . . . . . . . . . Follow-up Attacks . | . . . . . . . . . . . . . . . . . . Damage Inflicted 26905 | 21 387 667 . 246 3429 1445 . 2021 3058 747 396 685 . 647 2549 4801 5806 Guns 21894 | 21 387 252 . 22 3393 1445 . 2000 2755 747 356 535 . 647 2549 3646 3139 Cannons 3213 | . . 390 . 224 36 . . . 38 . 40 150 . . . 1039 1296 Explosions 1777 | . . 25 . . . . . . 265 . . . . . . 116 1371 Melee . | . . . . . . . . . . . . . . . . . . Ramming 21 | . . . . . . . . 21 . . . . . . . . . Kinetic 14630 | 21 387 355 . 149 1889 1065 . 1922 617 97 45 . . 590 2282 1926 3285 Thermal 8799 | . . 177 . 75 1223 380 . 78 2138 650 311 685 . 57 267 1608 1150 Explosive 1371 | . . . . . . . . . . . . . . . . . 1371 Electromagnetic 2084 | . . 135 . 22 317 . . . 303 . 40 . . . . 1267 . Impact . | . . . . . . . . . . . . . . . . . . Slashing . | . . . . . . . . . . . . . . . . . . Piercing . | . . . . . . . . . . . . . . . . . . Highest Corruption 73 | . 1 1 1 5 5 22 22 22 33 11 17 17 17 5 1 73 18 Average Corruption 11 | . 1 1 1 3 5 9 22 22 28 5 16 17 15 2 1 17 3 Corruption Purged . | . . . . . . . . . . . . . . . . . . Corruption Blocked . | . . . . . . . . . . . . . . . . . . Effects 454 | . 15 6 . 8 45 28 4 19 68 14 33 29 2 5 2 159 17 Message Errors 94 | . 5 . . . 14 7 . 2 14 3 9 5 . 1 . 30 4 Matter Fused 105 | . 2 1 . 2 4 5 2 3 17 2 6 8 1 1 . 49 2 Heat Flow Errors 54 | . 3 2 . . 9 5 1 2 3 2 5 3 . 1 1 17 . Energy Discharges 54 | . . 1 . 1 8 2 1 . 9 2 3 3 1 . . 20 3 Parts Rejected 3 | . . . . . . 1 . 1 . . . . . . . 1 . Parts Fused 7 | . . 1 . . 1 . . 1 . . . . . . 1 3 . Data Loss (minor) 48 | . 2 . . 1 1 4 . 2 7 3 3 5 . 1 . 16 3 Data Loss (major) 20 | . 3 . . 2 2 . . . 5 . 2 1 . . . 5 . Misfires 31 | . . . . 1 3 2 . 2 4 2 3 1 . . . 13 . Alerts 8 | . . 1 . 1 1 . . 1 1 . 1 1 . . . 1 . Misdirections 5 | . . . . . . . . 3 . . . . . . . 1 1 Weapon Failures 25 | . . . . . 2 2 . 2 8 . 1 2 . 1 . 3 4 Overload Shots 3 | . . . . . . . . . 3 . . . . . . . . Overflow Damage 140 | . . . . 1 . . . . . . . . . . . . 139 Projectiles 121 | . . . . 1 . . . . . . . . . . . . 120 Explosions 19 | . . . . . . . . . . . . . . . . . 19 Melee . | . . . . . . . . . . . . . . . . . . Knockbacks 8 | . . 1 . 1 . . . . . . . . . . . . 6 Impact . | . . . . . . . . . . . . . . . . . . Kinetic 7 | . . 1 . 1 . . . . . . . . . . . . 5 Secondary 1 | . . . . . . . . . . . . . . . . . 1 Self-Inflicted Damage 247 | . . . . . . . . 10 . . . . . . . 101 136 Shots 2 | . . . . . . . . . . . . . . . . 1 1 Rammed 2 | . . . . . . . . 2 . . . . . . . . . Targets Rammed 2 | . . . . . . . . 2 . . . . . . . . . Kicked . | . . . . . . . . . . . . . . . . . . Crushed . | . . . . . . . . . . . . . . . . . . Highest Temperature 589 | . 234 181 . 24 273 183 145 379 589 154 160 198 24 125 537 351 241 Average Temperature 95 | . 93 108 . 16 85 66 90 140 171 45 65 89 14 56 71 82 121 Received Heat Transfer 2363 | . 66 84 . . 402 50 . 342 351 . . 9 . 53 90 165 751 Effects 6 | . . . . . . . . 2 2 . . . . . 2 . . Shutdowns 3 | . . . . . . . . 1 1 . . . . . 1 . . Energy Bleed 1 | . . . . . . . . 1 . . . . . . . . . Matter Decay 1 | . . . . . . . . . . . . . . . 1 . . Damage (core) 1 | . . . . . . . . . 1 . . . . . . . . Siege Activations . | . . . . . . . . . . . . . . . . . . Martial Activations . | . . . . . . . . . . . . . . . . . . Shielding Activations . | . . . . . . . . . . . . . . . . . . Robots Disrupted 2 | . . . . . 1 . . . . . . . . . . 1 . Combat Hostiles 2 | . . . . . 1 . . . . . . . . . . 1 . Robots Corrupted 12 | . . . . . 1 . . . 1 . . . . . . 10 . Combat Hostiles 12 | . . . . . 1 . . . 1 . . . . . . 10 . Parts Fried 42 | . . 3 . . 3 . . . 2 . 1 . . . . 33 . Impact Corruptions . | . . . . . . . . . . . . . . . . . . Robots Melted 3 | . . . . . . . . . 1 . . . . . . 1 1 Combat Hostiles 2 | . . . . . . . . . 1 . . . . . . 1 . Parts Melted 27 | . . . . . 4 . . . 9 2 . 4 . . 2 2 4 Heat Transferred 13399 | . . 372 . 74 2823 877 . 150 3521 1032 395 1092 . 100 462 1572 929 Parts Sabotaged . | . . . . . . . . . . . . . . . . . . Parts Stolen . | . . . . . . . . . . . . . . . . . . Parts Stripped . | . . . . . . . . . . . . . . . . . . Power Chain Reactions 3 | . . 1 . . . . . . . . . . . . 1 1 . Alert | -11 -10 -10 -7 -5 -5 -5 -5 -5 -5 -4 -4 -4 -4 -3 -3 -3 -3 ------- Run | Yrd Mat Sub Scr Fac Ext Cet Arc Hub Gar Fac Upp Upp War Pro Res Qua Sec Maximum Alert Level 4 | . . . . . 4 3 1 2 3 2 . . . . 4 2 4 Low Security (%) 18 | 100 100 . . 100 21 . . 38 . . . . . . . . . Level 1 13 | . . . . . 31 . 100 46 19 82 . . . . . . 32 Level 2 48 | . . . . . 20 69 . 14 19 17 . . . . 18 100 12 Level 3 16 | . . . . . 9 30 . . 61 . . . . . 74 . 50 Level 4 2 | . . . . . 16 . . . . . . . . . 6 . 3 Level 5 . | . . . . . . . . . . . . . . . . . . High Security . | . . . . . . . . . . . . . . . . . . Max Security . | . . . . . . . . . . . . . . . . . . Peak Influence 1170 | . 71 . . 59 1170 765 294 446 873 457 . . . . 1154 663 1144 Initial 639 | . . . . . . 636 294 92 268 457 . . . . 629 639 315 Average 486 | . 9 . . 9 485 671 272 233 630 347 . . . . 939 542 692 Influence Increases 8780 | . 201 . . 102 1886 611 40 532 735 165 143 425 60 155 1613 803 1309 Destroy 0b10 Robot/C 3820 | . 140 . . 40 820 240 20 220 420 60 80 280 20 120 420 380 560 Destroy 0b10 Robot/NC 205 | . 25 . . 10 40 10 . 25 10 30 . . 5 5 10 30 5 Destroy Leader 700 | . 34 . . 10 116 10 . 56 30 22 20 40 . 30 82 140 110 Allied During Kill 1369 | . . . . 5 630 260 20 6 3 14 43 105 5 . 278 . . Successful Hack 100 | . . . . 23 28 . . 4 . . . . . . 21 . 24 Disable Machine 600 | . . . . . 90 15 . 105 . 15 . . . . 60 135 180 Anti-Garrison Action 100 | . . . . . . . . . 100 . . . . . . . . Destroy Structure 1016 | . 2 . . 14 132 76 . 86 52 24 . . . . 142 118 370 Advance Influence 600 | . . . . . . . . . . . . . . . 600 . . Partial Spotted 15 | . . . . . . . . . . . . . . . . . 15 Lose Combat Pursuer 255 | . . . . . 30 . . 30 120 . . . 30 . . . 45 Influence Decreases 7662 | . 201 . . 102 750 1012 511 412 246 746 435 344 141 111 521 1377 753 Entered New Map 2594 | . . . . . . 500 441 172 116 416 109 . 81 . 15 497 247 Time Decay 4030 | . 201 . . 102 556 362 50 160 . 310 306 294 36 111 416 770 356 Lost Part 470 | . . . . . 10 10 . 60 110 . . 10 . . 10 110 150 Lost Ally 568 | . . . . . 184 140 20 20 20 20 20 40 24 . 80 . . Squads Dispatched 30 | . 1 . . 2 6 . . 3 . 2 . . . . 6 2 8 Investigation 9 | . . . . 1 3 . . . . 1 . . . . 4 . . Extermination 5 | . . . . 1 . . . . . 1 . . . . . 2 1 Reinforcement 7 | . 1 . . . 2 . . 1 . . . . . . 2 . 1 Assault 3 | . . . . . 1 . . . . . . . . . . . 2 Garrison 6 | . . . . . . . . 2 . . . . . . . . 4 Intercept . | . . . . . . . . . . . . . . . . . . Searches Triggered . | . . . . . . . . . . . . . . . . . . Construction Impeded 2 | . . . . . 1 . . 1 . . . . . . . . . Haulers Reinforced 1 | . . . . . . . . . . . . . . . 1 . . Active Scanning Responses . | . . . . . . . . . . . . . . . . . . Cargo Convoy Interrupts . | . . . . . . . . . . . . . . . . . . Stealth | -11 -10 -10 -7 -5 -5 -5 -5 -5 -5 -4 -4 -4 -4 -3 -3 -3 -3 --------- Run | Yrd Mat Sub Scr Fac Ext Cet Arc Hub Gar Fac Upp Upp War Pro Res Qua Sec Distress Signals 15 | . 3 . . . 4 1 . 1 . . . . 2 . 2 . 2 Communications Jammed 75 | . . . . . . . . . . . . . . . . 21 54 Distress Signals 75 | . . . . . . . . . . . . . . . . 21 54 Times Spotted 290 | . 13 6 . 4 48 14 3 27 29 4 4 12 3 10 31 31 51 Peak Tracking Total 14 | . 5 2 . 2 7 5 5 11 5 2 2 5 3 4 7 4 14 Tactical Retreats 12 | . . . . . 2 . . 1 5 . . . 1 . . . 3 Traps | -11 -10 -10 -7 -5 -5 -5 -5 -5 -5 -4 -4 -4 -4 -3 -3 -3 -3 ------- Run | Yrd Mat Sub Scr Fac Ext Cet Arc Hub Gar Fac Upp Upp War Pro Res Qua Sec Traps Triggered 17 | . 1 . . 2 5 . . . 3 . . . . . 1 5 . Indirectly . | . . . . . . . . . . . . . . . . . . Trap Hack Attempts . | . . . . . . . . . . . . . . . . . . Triggered . | . . . . . . . . . . . . . . . . . . Disarmed . | . . . . . . . . . . . . . . . . . . Reprogrammed . | . . . . . . . . . . . . . . . . . . Reused . | . . . . . . . . . . . . . . . . . . Traps Extracted . | . . . . . . . . . . . . . . . . . . Installed . | . . . . . . . . . . . . . . . . . . Triggered . | . . . . . . . . . . . . . . . . . . Machines | -11 -10 -10 -7 -5 -5 -5 -5 -5 -5 -4 -4 -4 -4 -3 -3 -3 -3 ---------- Run | Yrd Mat Sub Scr Fac Ext Cet Arc Hub Gar Fac Upp Upp War Pro Res Qua Sec Machines Disabled 45 | . . 1 . . 7 1 . 7 . 1 . . 1 . 5 10 12 Max in Single Turn 2 | . . 1 . . 1 1 . 1 . 1 . . 1 . 1 1 2 Machines Repaired . | . . . . . . . . . . . . . . . . . . Machines Dismantled 5 | . . . . . 2 1 . . . . . . 1 . 1 . . Machines Sabotaged . | . . . . . . . . . . . . . . . . . . Overloaded Fab Kills . | . . . . . . . . . . . . . . . . . . Hacking | -11 -10 -10 -7 -5 -5 -5 -5 -5 -5 -4 -4 -4 -4 -3 -3 -3 -3 --------- Run | Yrd Mat Sub Scr Fac Ext Cet Arc Hub Gar Fac Upp Upp War Pro Res Qua Sec Machines Accessed 31 | . . 1 2 4 8 . . 1 1 2 . . 3 1 4 3 1 Terminals 17 | . . . . 2 7 . . . 1 1 . . . 1 1 3 1 Fabricators . | . . . . . . . . . . . . . . . . . . Repair Stations . | . . . . . . . . . . . . . . . . . . Recycling Units 7 | . . . . 2 1 . . . . 1 . . . . 3 . . Scanalyzers . | . . . . . . . . . . . . . . . . . . Garrison Access 1 | . . . . . . . . 1 . . . . . . . . . Total Hacks 63 | . . 1 6 8 15 . . 2 1 5 . . 7 2 7 8 1 Successful 33 | . . 1 6 2 7 . . 1 . 1 . . 7 2 3 2 1 Failed 30 | . . . . 6 8 . . 1 1 4 . . . . 4 6 . Catastrophic 8 | . . . . 1 2 . . . 1 1 . . . . . 3 . Database Lockouts . | . . . . . . . . . . . . . . . . . . Manual 21 | . . . . 8 1 1 . . . 5 . . . . 6 . . Terminals 34 | . . . . 4 14 . . . 1 2 . . . 2 2 8 1 Fabricators . | . . . . . . . . . . . . . . . . . . Repair Stations . | . . . . . . . . . . . . . . . . . . Recycling Units 13 | . . . . 4 1 . . . . 3 . . . . 5 . . Scanalyzers . | . . . . . . . . . . . . . . . . . . Garrison Access 2 | . . . . . . . . 2 . . . . . . . . . Terminal Hacks 27 | . . 1 6 1 6 . . . . . . . 7 2 1 2 1 Record 7 | . . . 5 . . . . . . . . . . 2 . . . Prototype ID Bank 5 | . . . . . . . . . . . . . 5 . . . . Open Door 7 | . . . . . 5 . . . . . . . 2 . . . . Branch Access Points 2 | . . . . 1 . . . . . . . . . . 1 . . Alert Level 3 | . . . . . 1 . . . . . . . . . . 2 . Zone Layout 1 | . . . . . . . . . . . . . . . . . 1 Proto ID Catalog 2 | . . 1 1 . . . . . . . . . . . . . . Fabricator Hacks . | . . . . . . . . . . . . . . . . . . Repair Station Hacks . | . . . . . . . . . . . . . . . . . . Recycling Unit Hacks . | . . . . . . . . . . . . . . . . . . Scanalyzer . | . . . . . . . . . . . . . . . . . . Garrison Access Hacks 1 | . . . . . . . . 1 . . . . . . . . . Unlock Access 1 | . . . . . . . . 1 . . . . . . . . . Unauthorized Hacks 5 | . . . . 1 1 . . . . 1 . . . . 2 . . Terminals 1 | . . . . 1 . . . . . . . . . . . . . Assimilate 1 | . . . . 1 . . . . . . . . . . . . . Fabricators . | . . . . . . . . . . . . . . . . . . Repair Stations . | . . . . . . . . . . . . . . . . . . Recycling Units 4 | . . . . . 1 . . . . 1 . . . . 2 . . Scrapoids 4 | . . . . . 1 . . . . 1 . . . . 2 . . Scanalyzers . | . . . . . . . . . . . . . . . . . . Garrison Access . | . . . . . . . . . . . . . . . . . . Data Cores Recovered 3 | . . . . 1 2 . . . . . . . . . . . . Used . | . . . . . . . . . . . . . . . . . . Hacking Detections 19 | . . . . 4 5 . . . 1 2 . . . 1 3 3 . Full Trace Events 3 | . . . . 1 1 . . . . . . . . . 1 . . Feedback Events 1 | . . . . . . . . . . . . . . . 1 . . Corruption 1 | . . . . . . . . . . . . . . . 1 . . Feedback Blocked . | . . . . . . . . . . . . . . . . . . Robot Schematics Acquired . | . . . . . . . . . . . . . . . . . . Robots Built . | . . . . . . . . . . . . . . . . . . Authchips . | . . . . . . . . . . . . . . . . . . Time . | . . . . . . . . . . . . . . . . . . Total Robot Build Rating . | . . . . . . . . . . . . . . . . . . Part Schematics Acquired . | . . . . . . . . . . . . . . . . . . Parts Built . | . . . . . . . . . . . . . . . . . . Authchips . | . . . . . . . . . . . . . . . . . . Time . | . . . . . . . . . . . . . . . . . . Total Part Build Rating . | . . . . . . . . . . . . . . . . . . Parts Repaired . | . . . . . . . . . . . . . . . . . . Time . | . . . . . . . . . . . . . . . . . . Parts Recycled . | . . . . . . . . . . . . . . . . . . Recycled Matter . | . . . . . . . . . . . . . . . . . . Retrieved Matter . | . . . . . . . . . . . . . . . . . . Retrieved Components . | . . . . . . . . . . . . . . . . . . Parts Scanalyzed . | . . . . . . . . . . . . . . . . . . Part Schematics Acquired . | . . . . . . . . . . . . . . . . . . Parts Damaged . | . . . . . . . . . . . . . . . . . . Bothacking | -11 -10 -10 -7 -5 -5 -5 -5 -5 -5 -4 -4 -4 -4 -3 -3 -3 -3 ------------ Run | Yrd Mat Sub Scr Fac Ext Cet Arc Hub Gar Fac Upp Upp War Pro Res Qua Sec Used RIF Installer . | . . . . . . . . . . . . . . . . . . Robots Hacked . | . . . . . . . . . . . . . . . . . . Non-combat . | . . . . . . . . . . . . . . . . . . Combat . | . . . . . . . . . . . . . . . . . . Robot Hacks Applied . | . . . . . . . . . . . . . . . . . . Relay Couplers Released . | . . . . . . . . . . . . . . . . . . Fabnet Peak Effective % . | . . . . . . . . . . . . . . . . . . Robots Rewired 16 | . . . . . 13 . . . 3 . . . . . . . . Allies Hacked . | . . . . . . . . . . . . . . . . . . Hacks Repelled . | . . . . . . . . . . . . . . . . . . Allies | -11 -10 -10 -7 -5 -5 -5 -5 -5 -5 -4 -4 -4 -4 -3 -3 -3 -3 -------- Run | Yrd Mat Sub Scr Fac Ext Cet Arc Hub Gar Fac Upp Upp War Pro Res Qua Sec Total Allies 55 | . . . 1 1 28 7 . . 3 5 . . . . 10 . . Largest Group 18 | . . . 1 2 18 17 14 1 3 6 6 4 2 . 8 . . Highest-Rated Group 954 | . . . 81 107 719 954 910 68 123 276 276 182 94 . 515 . . Highest-Rated Ally 159 | . . . 81 81 159 159 152 68 41 47 47 47 47 . 67 . . Total Orders 15 | . . . . . 2 3 . . 1 . 2 . 2 . 5 . . STAY 9 | . . . . . 1 2 . . 1 . 1 . 1 . 3 . . FOLLOW 6 | . . . . . 1 1 . . . . 1 . 1 . 2 . . Ally Attacks 459 | . . . . 2 177 89 1 9 5 9 30 22 15 . 100 . . Total Damage 11727 | . . . . 52 4487 2145 35 275 204 218 829 520 209 . 2753 . . Kills 67 | . . . . 1 27 12 1 2 1 1 3 7 2 . 10 . . Allies Corrupted . | . . . . . . . . . . . . . . . . . . Allies Melted 2 | . . . . . 1 . . . . . 1 . . . . . . Intel | -11 -10 -10 -7 -5 -5 -5 -5 -5 -5 -4 -4 -4 -4 -3 -3 -3 -3 ------- Run | Yrd Mat Sub Scr Fac Ext Cet Arc Hub Gar Fac Upp Upp War Pro Res Qua Sec Active Infowar (turns) 15174 | . . . . 597 1934 839 106 324 1201 699 741 302 791 524 1009 5377 730 Optics 14443 | . . . . 597 1934 839 106 324 1201 699 741 302 790 524 1009 5377 . Terrain 1 | . . . . . . . . . . . . . . . . 1 . Structural 592 | . . . . . 575 17 . . . . . . . . . . . Cloaking 932 | . . . . . . . . . . . . . 108 329 130 . 365 Jamming 2319 | . . . . . . . . . . . . . . . 873 717 729 ECM 1 | . . . . . . . . . . . . . . . . 1 . Robot Analysis Total . | . . . . . . . . . . . . . . . . . . Derelict Logs Recovered 6 | . . . 3 . . . . . . . 2 1 . . . . . Drone Launches . | . . . . . . . . . . . . . . . . . . Drone Recoveries . | . . . . . . . . . . . . . . . . . . Exploration | -11 -10 -10 -7 -5 -5 -5 -5 -5 -5 -4 -4 -4 -4 -3 -3 -3 -3 ------------- Run | Yrd Mat Sub Scr Fac Ext Cet Arc Hub Gar Fac Upp Upp War Pro Res Qua Sec Turns Passed 22748 | 108 1478 1186 3714 619 1934 839 106 324 1201 699 741 654 1406 524 1009 5389 817 Spaces Moved 12086 | 64 821 542 1797 339 1171 478 46 166 412 366 505 423 878 298 539 2906 335 Core 55 | 11 . . . . . . . . . . . . . . . . 44 Treads 1227 | 53 821 251 . . . . . . 102 . . . . . . . . Legs . | . . . . . . . . . . . . . . . . . . Wheels 10804 | . . 291 1797 339 1171 478 46 166 310 366 505 423 878 298 539 2906 291 Hover . | . . . . . . . . . . . . . . . . . . Flight . | . . . . . . . . . . . . . . . . . . Fastest Speed 50 | 50 160 110 110 145 120 130 140 130 120 165 140 140 140 150 150 130 50 Average Speed 161 | 150 167 183 194 159 132 137 140 139 227 173 141 146 145 150 150 159 145 Slowest Speed 640 | 160 320 320 230 205 220 140 140 140 640 180 165 150 150 150 160 170 170 Overloaded Moves . | . . . . . . . . . . . . . . . . . . Propulsion Burnouts . | . . . . . . . . . . . . . . . . . . Robots Hopped 2 | . . . . . . 2 . . . . . . . . . . . Potential Cave-ins 6 | . . . . . . 1 . . . . . . . . 5 . . Cave-ins Triggered . | . . . . . . . . . . . . . . . . . . Exploration Rate (%) 53 | 5 92 24 81 8 96 75 88 29 55 7 61 61 90 59 16 96 24 Regions Visited 17 Branch Regions 12 Pre-discovered Areas 2 | . . . . . . . . . . . 2 . . . . . . Known Exits Taken 5 | . . . . 1 . . . 1 . 1 . 1 . . 1 . . Unknown Exits Taken 11 | 1 1 1 1 . 1 1 1 . . . 1 . 1 1 . 1 . Scrap Searched 13 | . . 3 6 . . . . . . . 1 1 . 2 . . . Spaces Dug 60 | . . . . 6 6 . . . 1 2 . . 2 . 14 11 18 Terrain Destroyed 596 | . . 4 . 8 74 39 . 45 6 14 5 13 4 8 84 78 214 Melee 13 | . . . . . . . . . . . . . . . . 3 10 Projectile 440 | . . 1 . 8 74 39 . 45 6 14 5 13 4 6 70 65 90 AOE 139 | . . 3 . . . . . . . . . . . . 13 10 113 Terrain Rammed . | . . . . . . . . . . . . . . . . . . Walls Destroyed . | . . . . . . . . . . . . . . . . . . Machines Disabled . | . . . . . . . . . . . . . . . . . . Actions | -11 -10 -10 -7 -5 -5 -5 -5 -5 -5 -4 -4 -4 -4 -3 -3 -3 -3 --------- Run | Yrd Mat Sub Scr Fac Ext Cet Arc Hub Gar Fac Upp Upp War Pro Res Qua Sec Total 14377 | 71 865 667 2032 388 1449 639 87 216 572 408 524 438 995 333 680 3487 526 Wait 691 | . . 50 166 4 36 77 42 . 18 3 . . 36 1 12 226 20 Move 12065 | 63 820 541 1796 338 1170 473 45 165 411 365 504 422 877 297 538 2905 335 Hop 2 | . . . . . . 2 . . . . . . . . . . . Pick Up 209 | 1 12 14 34 9 21 21 . 2 19 9 2 2 14 2 13 26 8 Fast Attach 125 | 6 1 . . 7 3 4 . 3 7 4 2 . 11 1 10 56 10 Attach 93 | . . 7 3 7 8 3 . 2 16 2 1 2 1 . 4 17 20 Detach 20 | . . . . 1 1 . . 1 4 . . . 1 . . 7 5 Swap 102 | . 1 9 2 6 23 4 . 1 7 2 2 . 13 2 8 14 8 Drop 240 | . . 3 30 1 23 24 . 2 8 9 7 . 26 3 23 66 15 Fire 715 | 1 31 43 1 15 101 23 . 37 74 14 6 12 8 27 63 165 94 Melee 16 | . . . . . . . . . . . . . . . . 5 11 Ram 3 | . . . . . . . . 3 . . . . . . . . . Kick . | . . . . . . . . . . . . . . . . . . Crush . | . . . . . . . . . . . . . . . . . . Escape Stasis 55 | . . . . . 47 . . . 8 . . . . . . . . Rewire . | . . . . . . . . . . . . . . . . . . Trap . | . . . . . . . . . . . . . . . . . . Miscellaneous 41 | . . . . . 16 8 . . . . . . 8 . 9 . . Route ------- -11/Scrapyard -10/Materials (discovered 6 exits: [*Mat x3] / [*Min x2] / *Sub) -10/Subcaves (discovered 2 exits: [*Mat] / *Scr) -7/Scraptown -5/Factory (discovered 4 exits: Upp x2 / *Ext x2) -5/Extension (discovered 2 exits: *Fac / *Cet) -5/Cetus (discovered 2 exits: *Fac / [*Arc]) -5/Archives (discovered 2 exits: *Hub x2) -5/Hub_04(d) -5/Garrison -4/Factory -4/Upper Caves -4/Upper Caves (discovered 2 exits: *Res / *War) -4/Warlord -3/Proximity Caves -3/Research (discovered 4 exits: Res / Arm / *Qua x2) -3/Quarantine (discovered 3 exits: *Res / *Sec / [*Frg]) -3/Section 7 History --------- Turn | Location | Event 2 | -11/Scrapyard | Met Revision 17 13 | -11/Scrapyard | Discovered new exit (range 15) 109 | -11/Scrapyard | Entered Materials 110 | -10/Materials | Met a group of wandering Federalists 217 | -10/Materials | Discovered new exit (range 16) 300 | -10/Materials | Build established: Mutant 562 | -10/Materials | Discovered new exit (range 15) 839 | -10/Materials | Discovered new exit (range 11) 1073 | -10/Materials | Discovered new exit (range 15) 1442 | -10/Materials | Discovered new exit (range 13) 1574 | -10/Materials | Discovered new exit (range 5) 1587 | -10/Materials | Entered Subcaves 1588 | -10/Subcaves | Continued accompanying wandering Federalists (6) 1588 | -10/Subcaves | Approached by a straggling Scientist 1738 | -10/Subcaves | Discovered new exit (range 14) 1817 | -10/Subcaves | Ambushed by Subdweller buried in earth 1823 | -10/Subcaves | Core integrity fell below 50% 2080 | -10/Subcaves | Visited 4L-MR0's lab 2109 | -10/Subcaves | Found Prototype Leg 2119 | -10/Subcaves | Identified Cargo Legs 2477 | -10/Subcaves | Ambushed by angry Subdweller bent on revenge 2720 | -10/Subcaves | Lost 4 parts (3n1w) 2773 | -10/Subcaves | Entered Scraptown 2776 | -7/Scraptown | System corruption cleaned by C-Scrubber 2860 | -7/Scraptown | Visited UFD Registry 2860 | -7/Scraptown | Registered with UFD as "Gravdisc" 2902 | -7/Scraptown | Visited Junk Repository 2920 | -7/Scraptown | Visited Chapter 10 2935 | -7/Scraptown | Visited Science Guys 2952 | -7/Scraptown | Visited Scrap Suit Storage 2966 | -7/Scraptown | Visited Abandonware Association 2982 | -7/Scraptown | Visited Infowarlord's Domain 2998 | -7/Scraptown | Visited Botcube Research 3035 | -7/Scraptown | Visited LU-1G1's Boring Crew 3220 | -7/Scraptown | Heard Great Nut preacher, LISTEN AND RECITE! 3232 | -7/Scraptown | Scanned Subdweller tech in exchange for log data 3234 | -7/Scraptown | Learned location of 1 exit from Factory 3237 | -7/Scraptown | Learned location of 1 exit from Research 3557 | -7/Scraptown | Build established: Hauler-Mutant 3997 | -7/Scraptown | Visited Bundlers 4731 | -7/Scraptown | Received an X-ray algorithm 4752 | -7/Scraptown | Found Scrap Suit 4817 | -7/Scraptown | Learned abandonware demo "TRNCOAT.EXE" 4817 | -7/Scraptown | Learned abandonware demo "MELTYB.EXE" 4909 | -7/Scraptown | Found Spectral Analyzer 5104 | -7/Scraptown | Found Botcube 5183 | -7/Scraptown | Botcube activated 5207 | -7/Scraptown | Botcube completed mutation into legged form, armed with 2 cannons. 5329 | -7/Scraptown | Found Scrap Suit 6204 | -7/Scraptown | Visited CPS Storage 6372 | -7/Scraptown | Met Optimus 6372 | -7/Scraptown | Accepted into 0bPrime 6481 | -7/Scraptown | Discovered new exit (range 3) 6487 | -7/Scraptown | Entered Factory 6487 | -5/Factory | Accompanied by 1 ally 6487 | -5/Factory | Evolved 10 slots: Power x1, Utility x8, Weapon x1 6488 | -5/Factory | Identified exit to Upper Caves 6596 | -5/Factory | Identified exit to Extension 7106 | -5/Factory | Entered Extension 7106 | -5/Extension | Accompanied by 1 ally 7397 | -5/Extension | Scrapoid reinforcements arrived 7447 | -5/Extension | Found Scrap Suit 7525 | -5/Extension | Spotted B-75 Beast 7550 | -5/Extension | Destroyed B-75 Beast 7561 | -5/Extension | Lost 3 allies 7604 | -5/Extension | Found Scrap Suit 7630 | -5/Extension | Rescued a captive Derelict 7633 | -5/Extension | Rescued a captive Derelict 7668 | -5/Extension | Rescued a captive Derelict 7710 | -5/Extension | Build established: Scavenger-Scrapper 7732 | -5/Extension | Rescued a captive Derelict 7733 | -5/Extension | Rescued a captive Derelict 8063 | -5/Extension | Spotted B-75 Beast 8085 | -5/Extension | Destroyed B-75 Beast 8165 | -5/Extension | Rescued a captive Derelict 8165 | -5/Extension | Rescued a captive Derelict 8237 | -5/Extension | Rescued A7 8293 | -5/Extension | Rescued a captive Derelict 8349 | -5/Extension | Rescued a captive Derelict 8350 | -5/Extension | Rescued a captive Derelict 8554 | -5/Extension | Lost 4 allies 8591 | -5/Extension | Discovered new exit (range 10) 8592 | -5/Extension | Discovered new exit (range 6) 8606 | -5/Extension | First assault squad dispatched 8616 | -5/Extension | Disrupted transfer network 8644 | -5/Extension | Lost 3 allies 9040 | -5/Extension | Entered Cetus 9040 | -5/Cetus | Accompanied by 16 allies (A7) 9045 | -5/Cetus | Acquired a Cetus Manufacturing Module code from A7 9053 | -5/Cetus | Spotted Cetus Guard 9053 | -5/Cetus | Spotted Cetus Guard 9053 | -5/Cetus | Spotted Cetus Guard 9053 | -5/Cetus | Spotted Cetus Guard 9071 | -5/Cetus | Allies destroyed Cetus Guard 9073 | -5/Cetus | Allies destroyed Cetus Guard 9085 | -5/Cetus | Allies destroyed Cetus Guard 9086 | -5/Cetus | Allies destroyed Cetus Guard 9111 | -5/Cetus | Lost 3 allies 9158 | -5/Cetus | Started Cetus Manufacturing Module 9183 | -5/Cetus | Manufactured an Enhanced Grunt 9188 | -5/Cetus | Escorted A7 to Cetus Mainframe 9198 | -5/Cetus | Discovered new exit (range 24) 9208 | -5/Cetus | Manufactured an Enhanced Grunt 9233 | -5/Cetus | Manufactured an Enhanced Grunt 9252 | -5/Cetus | Spotted Cetus Guard 9252 | -5/Cetus | Spotted Cetus Guard 9256 | -5/Cetus | Discovered new exit (range 24) 9258 | -5/Cetus | Manufactured an Enhanced Grunt 9259 | -5/Cetus | Spotted Cetus Guard 9262 | -5/Cetus | Spotted Cetus Guard 9271 | -5/Cetus | Allies destroyed Cetus Guard 9273 | -5/Cetus | Found Botcube 9277 | -5/Cetus | Allies destroyed Cetus Guard 9283 | -5/Cetus | Manufactured an Enhanced Grunt 9283 | -5/Cetus | Allies destroyed Cetus Guard 9287 | -5/Cetus | Allies destroyed Cetus Guard 9308 | -5/Cetus | Lost 3 allies 9428 | -5/Cetus | Met Revision 17 9589 | -5/Cetus | Botcube activated 9601 | -5/Cetus | Botcube completed mutation into wheeled form (unarmed). 9644 | -5/Cetus | Murdered Mutated Botcube 9644 | -5/Cetus | Destroyed Mutated Botcube 9648 | -5/Cetus | Found Botcube 9667 | -5/Cetus | System corruption reached 10% 9705 | -5/Cetus | Botcube activated 9723 | -5/Cetus | Botcube completed mutation into treaded form, armed with 2 guns. 9790 | -5/Cetus | Security sweep announced 9879 | -5/Cetus | Entered Archives 9879 | -5/Archives | Accompanied by 14 allies (A7) 9884 | -5/Archives | Received a hacking code to weaken MAIN.C 9896 | -5/Archives | Met Zhirov 9896 | -5/Archives | Discovered new exit (range 22) 9902 | -5/Archives | Reinforcements dispatched to Archives 9902 | -5/Archives | Discovered new exit (range 22) 9947 | -5/Archives | Reinforcements dispatched to Archives 9967 | -5/Archives | Zhirov detonated Archives 9985 | -5/Archives | Entered Hub_04(d) 9985 | -5/Hub_04(d) | Accompanied by 1 ally 9998 | -5/Hub_04(d) | Lost 12 allies 10075 | -5/Hub_04(d) | Spotted B-75 Beast 10104 | -5/Hub_04(d) | Allies destroyed B-75 Beast 10203 | -5/Hub_04(d) | Garrison activated, responded to threat 10284 | -5/Hub_04(d) | Destroyed 7 combat bots 10300 | -5/Hub_04(d) | Identified exit to Garrison 10309 | -5/Hub_04(d) | Entered Garrison 10340 | -5/Garrison | Lost 4 parts (1p2u1w) 10403 | -5/Garrison | Triggered checkpoint 10553 | -5/Garrison | Core integrity fell below 50% 10645 | -5/Garrison | Triggered checkpoint 10677 | -5/Garrison | Triggered checkpoint 10714 | -5/Garrison | Spotted B-75 Beast 10756 | -5/Garrison | Lost 4 parts (3u1w) 10775 | -5/Garrison | Destroyed B-75 Beast 10812 | -5/Garrison | System corruption reached 30% 10831 | -5/Garrison | Lost 5 parts (1p3u1w) 11100 | -5/Garrison | Build established: Scavenger-Tank 11137 | -5/Garrison | Triggered checkpoint 11219 | -5/Garrison | Found Adv. Powered Armor 11419 | -5/Garrison | Discovered new exit (range 11) 11510 | -5/Garrison | Entered Factory 11510 | -4/Factory | Accompanied by 2 allies 11510 | -4/Factory | Evolved 2 slots: Utility x1, Weapon x1 11654 | -4/Factory | Discovered new exit (range 9) 12062 | -4/Factory | System corruption reached 10% 12085 | -4/Factory | Scrapoid reinforcements arrived 12198 | -4/Factory | Identified exit to Upper Caves 12209 | -4/Factory | Entered Upper Caves 12209 | -4/Upper Caves | Accompanied by 6 allies 12211 | -4/Upper Caves | Spotted B-86 Titan 12226 | -4/Upper Caves | Destroyed B-86 Titan 12234 | -4/Upper Caves | Build established: Scavenger-Gunner 12289 | -4/Upper Caves | Found Corrupted Scrap Suit 12363 | -4/Upper Caves | Learned location of Testing (-2) 12615 | -4/Upper Caves | Learned location of Quarantine (-3) 12931 | -4/Upper Caves | Discovered new exit (range 12) 12950 | -4/Upper Caves | Entered another Upper Caves area 12950 | -4/Upper Caves | Accompanied by 4 allies 13093 | -4/Upper Caves | Discovered new exit (range 13) 13099 | -4/Upper Caves | Identified exit to Warlord 13249 | -4/Upper Caves | Build established: Scavenger-Tank 13251 | -4/Upper Caves | Spotted B-86 Titan 13258 | -4/Upper Caves | Allies destroyed B-86 Titan 13267 | -4/Upper Caves | Found Scrap Suit 13604 | -4/Upper Caves | Entered Warlord 13604 | -4/Warlord | Accompanied by 2 allies 13658 | -4/Warlord | System corruption cleaned by Quarantine Array 13740 | -4/Warlord | System corruption cleaned by Quarantine Array 14193 | -4/Warlord | Found Prototype Reactor 14193 | -4/Warlord | Identified Vortex Chain Reactor 14203 | -4/Warlord | Found Prototype Device 14203 | -4/Warlord | Identified Exp. Cloaking Device 14212 | -4/Warlord | Found Prototype Device 14212 | -4/Warlord | Identified System Purifier 14220 | -4/Warlord | Found Spectral Analyzer 14230 | -4/Warlord | Found Prototype Hackware 14423 | -4/Warlord | Received a Watcher feed algorithm from an ecstatic Tinkerer 14453 | -4/Warlord | Warlord's base attacked by MAIN.C 14493 | -4/Warlord | Rebuked by Warlord 14641 | -4/Warlord | Found Prototype Energy Gun 14641 | -4/Warlord | Identified Vortex Rifle 14648 | -4/Warlord | Found Prototype Energy Cannon 14648 | -4/Warlord | Identified Vortex Driver 14656 | -4/Warlord | Found Vortex Driver 14668 | -4/Warlord | Found Vortex Rifle 14803 | -4/Warlord | Warlord forces counterattacked 14828 | -4/Warlord | Lost 5 allies 14926 | -4/Warlord | Opened side exit 14989 | -4/Warlord | Spotted Striker 14991 | -4/Warlord | Discovered new exit (range 9) 15010 | -4/Warlord | Entered Proximity Caves 15013 | -3/Proximity Caves | Spotter reported a threat 15267 | -3/Proximity Caves | Spotter reported a threat 15320 | -3/Proximity Caves | Spotter reported a threat 15433 | -3/Proximity Caves | Spotter reported a threat 15516 | -3/Proximity Caves | Discovered new exit (range 9) 15534 | -3/Proximity Caves | Entered Research 15534 | -3/Research | Evolved 2 slots: Power x1, Utility x1 15535 | -3/Research | Identified exit to Research 15588 | -3/Research | Identified exit to Armory 15588 | -3/Research | Identified exit to Quarantine 15700 | -3/Research | Scrapoids reinforcements arrived? 15734 | -3/Research | Revision forces began assault on 0b10 15753 | -3/Research | Met up with Revision 17++ 15762 | -3/Research | Spotted B-86 Titan 15768 | -3/Research | Allies destroyed B-86 Titan 15774 | -3/Research | Found Scrap Suit 15796 | -3/Research | Scrapoid reinforcements arrived 15808 | -3/Research | Found Scrap Suit 15871 | -3/Research | Murdered 3 allies 15952 | -3/Research | Found Scrap Suit 15973 | -3/Research | Found Scrap Suit 16100 | -3/Research | Build established: Scavenger-Scrapper 16234 | -3/Research | Research terminal network offline 16408 | -3/Research | Spotted B-90 Cyclops 16455 | -3/Research | Destroyed B-90 Cyclops 16457 | -3/Research | Spotted Striker 16480 | -3/Research | Lost 3 allies 16543 | -3/Research | Entered Quarantine 16561 | -3/Quarantine | Identified Ghost Barrier 16613 | -3/Quarantine | Spotted Alpha 7 16644 | -3/Quarantine | Destroyed Alpha 7 16655 | -3/Quarantine | Found Prototype Ballistic Gun 16655 | -3/Quarantine | Identified Multirail 16662 | -3/Quarantine | Found Exp. ECM Suite 16675 | -3/Quarantine | Lost 4 parts (1p2u1w) 16798 | -3/Quarantine | Found Prototype Protection 16798 | -3/Quarantine | Identified Centrium Heavy Armor Plating 16883 | -3/Quarantine | Build established: Scavenger-Gunner 17361 | -3/Quarantine | Cryocooling Duct disabled 17376 | -3/Quarantine | Ambient heat levels rising (+20) 17376 | -3/Quarantine | Non-combat units ordered to evacuate 17383 | -3/Quarantine | Cryocooling Duct disabled 17398 | -3/Quarantine | Ambient heat levels rising (+20) 17398 | -3/Quarantine | Combat units ordered to evacuate 17498 | -3/Quarantine | Quarantine Guard activated 17629 | -3/Quarantine | Spotted Quarantine Guard 17635 | -3/Quarantine | Destroyed Quarantine Guard 17646 | -3/Quarantine | Spotted Quarantine Guard 17658 | -3/Quarantine | Spotted Quarantine Guard 17661 | -3/Quarantine | Spotted Quarantine Guard 17683 | -3/Quarantine | Destroyed Quarantine Guard 17695 | -3/Quarantine | Spotted Quarantine Guard 17697 | -3/Quarantine | Destroyed Quarantine Guard 17700 | -3/Quarantine | Destroyed Quarantine Guard 17710 | -3/Quarantine | Destroyed Quarantine Guard 17727 | -3/Quarantine | Spotted Quarantine Guard 17727 | -3/Quarantine | Spotted Quarantine Guard 17739 | -3/Quarantine | Destroyed Quarantine Guard 17755 | -3/Quarantine | Found Alien Artifact 17755 | -3/Quarantine | Identified Phase Armor 17784 | -3/Quarantine | Spotted Quarantine Guard 17821 | -3/Quarantine | Destroyed Quarantine Guard 17829 | -3/Quarantine | System corruption reached 10% 18063 | -3/Quarantine | Spotted Quarantine Guard 18072 | -3/Quarantine | Destroyed Quarantine Guard 18276 | -3/Quarantine | Destroyed Quarantine Guard 18327 | -3/Quarantine | Discovered exit to Research (range 19) 18327 | -3/Quarantine | Spotted Quarantine Guard 18381 | -3/Quarantine | Build established: Scavenger-Tank 18385 | -3/Quarantine | Destroyed Quarantine Guard 18868 | -3/Quarantine | Found Alien Slashing Weapon 18868 | -3/Quarantine | Identified Sigix Broadsword 19159 | -3/Quarantine | Build established: Scavenger-Mutant 19162 | -3/Quarantine | System corruption reached 30% 20020 | -3/Quarantine | Found Alien Artifact 20020 | -3/Quarantine | Identified Core Reset Matrix 20020 | -3/Quarantine | Used Core Reset Matrix 20024 | -3/Quarantine | Detected hypermatrix surge 20024 | -3/Quarantine | Sensed 4 artifacts in vicinity 20032 | -3/Quarantine | Discovered exit to Research (range 22) 20361 | -3/Quarantine | Found Subatomic Replicator 20712 | -3/Quarantine | Found Core Cannon 21188 | -3/Quarantine | Spotted Fortress 21278 | -3/Quarantine | Destroyed Fortress 21915 | -3/Quarantine | Discovered new exit (range 5) 21915 | -3/Quarantine | Discovered new exit (range 6) 21915 | -3/Quarantine | Spotted Quarantine Guard 21915 | -3/Quarantine | Spotted Quarantine Guard 21932 | -3/Quarantine | Entered Section 7 21933 | -3/Section 7 | Detected hypermatrix surge 21933 | -3/Section 7 | Sensed 20 artifacts in vicinity 22021 | -3/Section 7 | Found Integrated Reactor 22021 | -3/Section 7 | Installed Integrated Reactor, increased core energy generation (+10) 22096 | -3/Section 7 | Found Prototype Device 22096 | -3/Section 7 | Identified Exp. Thermal Shield 22252 | -3/Section 7 | Found Integrated Dissipator 22252 | -3/Section 7 | Installed Integrated Dissipator, increased core heat dissipation (+20) 22258 | -3/Section 7 | Destroyed 9 combat bots 22443 | -3/Section 7 | Spotted S7 Guard 22546 | -3/Section 7 | Destroyed S7 Guard 22582 | -3/Section 7 | Lost 4 parts (1p2u1w) 22653 | -3/Section 7 | Spotted Alpha 7 22653 | -3/Section 7 | Spotted Alpha 7 22682 | -3/Section 7 | First assault squad dispatched 22698 | -3/Section 7 | Garrison activated, responded to threat 22706 | -3/Section 7 | Destroyed Alpha 7 22724 | -3/Section 7 | Released all parts (13) 22726 | -3/Section 7 | Core integrity fell below 50% 22734 | -3/Section 7 | Core integrity fell below 20% 22749 | -3/Section 7 | Destroyed by H-71 Marshal with Heavy Mass Driver Last Messages --------------- 22725_ Penetrated by Slug. 22726_ Slug penetrates Y-72 Warden. 22726_ Penetrated by Slug. 22726_ Slug penetrates Wall. 22727_ Acquired Exp. Cloaking Device. 22728_ U-05 Engineer builds a Wall. 22730_ Penetrated by Slug. 22730_ Slug penetrates Wall. 22731_ M-36 Artificer repairs G-67 Veteran. 22732_ U-05 Engineer builds a Wall. 22733_ Penetrated by Slug. 22733_ Slug penetrates Wall. 22734_ System corrupted: Energy discharge (-38). 22734_ Critical hit (Burn: +37). 22741_ Penetrated by Slug. 22744_ ALERT: Suspicious intruders detected, dispatching Cutter reinforcements to area. 22747_ Penetrated by Slug. 22747_ Knocked back. 22749_ Penetrated by Slug. Map ----- +----------------------------------------------------+ | | | | | ?????????????????????????????????????????????????? | | ?????????????????????????????????????????????????? | | ?????????????????????????????????????????????????? | | ?????????????????????????????????????????????????? | | ?????????????????????????????????????????????????? | | ?????????????????????????????????????????????????? | | ?????????????????????????????????????????????????? | | ?????????????????????????????????????????????????? | | ???????????????????????#?????????????????????????? | | ??????????????????????? ?????????????????????????? | | ??????????????????????? " ???????????????????????? | | ??????????????????????? "T???????????????????????? | | ??????????????????????? ???????????????????????? | | ???????????????????????# ???????????????????????? | | ???????????????????????# ???????????????????????? | | ???????????????????????# #??????????????????????? | | ???????????????????????+ +??????????????????????? | | ???????????????????????# #??????????????????????? | | ???????????????????????# ########???????????????? | | ??????????????????????## ## ! #???????????????? | | ???????????????######## A# #???????????????? | | ??????????????## # #???????????????? | | ???????????? H[ + """#???????????????? | | ???????????????????#### @%# """#???????????????? | | ??????????????????????##+### %"""#???????????????? | | ???????????????????????????# """#???????????????? | | ???????????????????????????# """#???????????????? | | ???????????????????????????# """#???????????????? | | ???????????????????????????# """#???????????????? | | ???????????????????????????# #???????????????? | | ???????????????????????????# #???????????????? | | ???????????????????????????###+###???????????????? | | ?????????????????????????????# #?????????????????? | | ?????????????????????????????# #?????????????????? | | ??????????????#????#+#+####### #?????????????????? | | ?##+####?###?## #### #?????????????????? | | ? ? #? + #?????????????????? | | ? #?" # ! #?????????????????? | | ? #" # #?????????????????? | | ? #"""" ?# #?????????????????? | | """ #""!" ?# ""T"" #?????#???????????? | | """ #""""??# """"" ##### # ????????? | | """ #?""" ?# / ???????? | | """ #?#"#"?# / ???????? | | """ #?#"#"##+### / ???????? | | """ #?## ## / ???????? | | """ #??# ## ##### ##### # ???????? | | #### ## % # #?????????????????? | +----------------------------------------------------+ Best States ------------- Heat Dissipation 156 Coolant Potential 120 Energy Generation 75 Energy Capacity 915 Matter Stores 300 Matter Capacity 300 Sight Range 24 Terrain Scan Density 210 Jamming Range 16 Cloak Strength 4 Additional Mass Support 12 Base Temperature (-) 200 Armor Coverage 825 Resistance: TH 30 Resistance: EX 50 Core Shielding 20 Weapon Cycling 25 Evasion (%) 50 Targeting Accuracy 5 Target Analysis 6 Core Analysis 6 Armor Integrity Analysis 40 Recoil Reduction 6 Matter Filtering 50 Kinecelleration 30 Salvage Targeting 4 Offensive Hacking 22 Defensive Hacking 20 Item Schematics ----------------- None Robot Schematics ------------------ None Fabricated ------------ Nothing Repaired ---------- Nothing Alien Tech Used ----------------- Phase Armor Sigix Broadsword Core Reset Matrix Integrated Reactor Integrated Dissipator Core Cannon Achievements -------------- None Challenges ------------ None Game ------ Seed BlanketNeutrinoRouter Manual? 0 Play Time 02:34:53 Cumulative 339.6 hours Start 2025.07.07 @ 11:56:09 End 2025.07.08 @ 17:01:30 Sessions 7 Manual Loads 0 Difficulty Rogue Special Mode None Game No. 327 Rogue 291 Adventurer 36 Explorer 0 Win Type - Total 12 Types 4/0/8/0/0/0/0/0/0/0 Lore% 70 Gallery% 82 Achievement% 74 Wizard Run 0 Options --------- Layout 0 ASCII 0 Keyboard 0 Movement Mouse Keybinds 0 Fullscreen 1 Font 18/SmallcapsGlow Map View 76x50 Zoom Use 0% Tactical HUD 1 Map Filters NONE Filters SHIFT_HUE(315) Steam 1 RUN: 2ab983e7-4fba-4346-a7ed-d1f89215f83b